bitfinex/quotes_SOLUSD_20241223
["timestamp","ask_amount","ask_price","bid_price","bid_amount"]
[1734914340678,43.74629594,179.26,179.19,43.74629594]
[1734914341163,43.74629594,179.26,179.18,43.74629594]
[1734914341343,43.74629594,179.25,179.18,43.74629594]
[1734914341828,43.74629594,179.25,179.17,43.74629594]
[1734914342647,43.74629594,179.24,179.17,43.74629594]
[1734914342953,43.74629594,179.25,179.18,44.58322821]
[1734914344039,43.74629594,179.24,179.17,43.74629594]
[1734914344448,43.74629594,179.23,179.15,43.74629594]
[1734914344747,43.74629594,179.22,179.14,43.74629594]
[1734914344952,43.74629594,179.23,179.16,67.52317994]
[1734914345353,43.74629594,179.23,179.16,43.74629594]
[1734914345740,43.74629594,179.23,179.16,23.776884]
[1734914346078,43.74629594,179.21,179.13,43.74629594]
[1734914346275,43.74629594,179.25,179.17,43.74629594]
[1734914346476,43.74629594,179.26,179.19,43.74629594]
[1734914347483,43.74629594,179.24,179.17,44.58316238]
[1734914348678,20.0,179.26,179.17,44.58316238]
[1734914348883,43.74629594,179.25,179.17,44.58316238]
[1734914350696,43.74629594,179.25,179.17,43.74629594]
[1734914350855,43.74629594,179.21,179.13,43.74629594]
[1734914351191,43.74629594,179.23,179.15,43.74629594]
[1734914351354,43.74629594,179.23,179.16,0.83691487]
[1734914353073,43.74629594,179.23,179.15,43.74629594]
[1734914356084,43.74629594,179.21,179.15,43.74629594]
[1734914358990,43.74629594,179.21,179.13,44.58329056]
[1734914359189,43.74629594,179.28,179.1,6.0988]
[1734914359369,43.74629594,179.17,179.11,4.0705323]
[1734914359572,43.74629594,179.15,179.11,4.0705323]
[1734914359894,43.74629594,179.12,179.11,4.0705323]
[1734914360189,43.74629594,179.14,179.11,4.0705323]
[1734914360394,43.74629594,179.18,179.11,43.74629594]
[1734914360690,43.74629594,179.19,179.11,43.74629594]
[1734914360988,43.74629594,179.19,179.12,0.83716071]
[1734914361196,43.74629594,179.22,179.14,43.74629594]
[1734914361573,43.74629594,179.23,179.15,43.74629594]
[1734914361771,43.74629594,179.23,179.15,54.42955688]
[1734914362292,43.74629594,179.23,179.16,4.06916094]
[1734914362494,43.74629594,179.25,179.17,67.52317994]
[1734914362672,43.74629594,179.25,179.18,0.83688298]
[1734914362873,43.74629594,179.26,179.19,43.74629594]
[1734914363498,8.1531,179.33,179.19,43.74629594]
[1734914363499,43.74629594,179.27,179.19,43.74629594]
[1734914364295,43.74629594,179.26,179.19,43.74629594]
[1734914364832,43.74629594,179.27,179.2,43.74629594]
[1734914364993,43.74629594,179.27,179.19,43.74629594]
[1734914365172,43.74629594,179.26,179.19,43.74629594]
[1734914367398,43.74629594,179.27,179.19,43.74629594]
[1734914368795,43.74629594,179.24,179.16,43.74629594]
[1734914369374,43.74629594,179.23,179.15,50.36039594]
[1734914369576,43.74629594,179.28,179.15,6.6141]
[1734914369577,43.74629594,179.22,179.15,6.6141]
[1734914369892,43.74629594,179.19,179.12,1.8596]
[1734914370077,43.74629594,179.18,179.1,50.32369594]
[1734914370279,43.74629594,179.18,179.13,4.07221218]
[1734914370495,43.74629594,179.17,179.13,4.07221218]
[1734914370796,43.74629594,179.14,179.13,4.07221218]
[1734914370973,43.74629594,179.14,179.04,43.74629594]
[1734914371169,43.74629594,179.14,179.02,7.36724028]
[1734914371170,43.74629594,179.09,179.02,6.5297]
[1734914371694,43.74629594,179.08,179.0,43.74629594]
[1734914371901,43.74629594,179.04,178.98,6.348]
[1734914372312,43.74629594,179.04,178.99,4.07046239]
[1734914372805,43.74629594,179.02,178.98,6.348]
[1734914373099,43.74629594,179.1,178.93,1.9535]
[1734914373100,43.74629594,178.99,178.93,6.4866]
[1734914373277,43.74629594,179.1,178.93,6.4866]
[1734914373278,43.74629594,178.96,178.93,6.4866]
[1734914373475,43.74629594,178.94,178.82,8.77199954]
[1734914373675,43.74629594,178.91,178.82,9.61050086]
[1734914374097,43.74629594,178.9,178.82,9.61050086]
[1734914374304,43.74629594,178.9,178.84,4.06204357]
[1734914374695,43.74629594,178.9,178.81,1.53915626]
[1734914375209,43.74629594,178.9,178.83,20.0]
[1734914375387,43.74629594,178.9,178.83,20.83849364]
[1734914375585,43.74629594,178.9,178.83,64.58478958]
[1734914375781,43.74629594,178.9,178.83,20.0]
[1734914375976,43.74629594,178.89,178.83,20.0]
[1734914376206,43.74629594,178.89,178.82,43.74629594]
[1734914376389,43.74629594,178.91,178.84,43.74629594]
[1734914379286,43.74629594,178.9,178.83,64.58475832]
[1734914380183,43.74629594,178.9,178.83,20.0]
[1734914380386,43.74629594,178.88,178.81,45.28545285]
[1734914380589,43.74629594,178.86,178.81,0.7006392]
[1734914381095,43.74629594,178.84,178.81,0.7006392]
[1734914381299,43.74629594,178.86,178.81,0.7006392]
[1734914384310,43.74629594,178.88,178.81,0.7006392]
[1734914384512,43.74629594,178.91,178.83,43.74629594]
[1734914384700,43.74629594,178.91,178.82,24.61548753]
[1734914384701,43.74629594,178.91,178.84,43.74629594]
[1734914384907,43.74629594,178.92,178.84,43.74629594]
[1734914385996,43.74629594,178.91,178.84,43.74629594]
[1734914386200,43.74629594,178.91,178.83,43.74629594]
[1734914386410,43.7229343,178.91,178.84,0.8384601]
[1734914386987,43.74629594,178.9,178.84,0.8384601]
[1734914387807,43.74629594,178.91,178.84,0.8384601]
[1734914388416,43.74629594,178.9,178.84,0.8384601]
[1734914388619,43.74629594,178.92,178.85,43.74629594]
[1734914388922,43.74629594,178.94,178.86,44.58476444]
[1734914389113,43.74629594,178.96,178.89,23.776884]
[1734914389318,43.74629594,178.99,178.91,67.52317994]
[1734914389531,43.74629594,178.99,178.91,68.36125805]
[1734914390525,27.31363671,179.18,178.91,68.36125805]
[1734914390526,43.74629594,179.02,178.94,43.74629594]
[1734914390703,43.74629594,179.02,178.94,44.58422837]
[1734914390902,43.74629594,179.03,178.95,67.52317994]
[1734914391742,43.74629594,179.02,178.95,67.52317994]
[1734914392224,43.74629594,178.99,178.91,57.71969594]
[1734914392408,43.74629594,178.99,178.92,23.776884]
[1734914392933,20.0,179.06,178.94,43.74629594]
[1734914393220,43.74629594,179.0,178.93,43.74629594]
[1734914393424,43.74629594,179.01,178.88,0.83797398]
[1734914393607,43.74629594,178.93,178.87,1.9683]
[1734914394312,43.74629594,178.94,178.87,1.9683]
[1734914394500,43.74629594,178.95,178.87,46.55291406]
[1734914395515,43.74629594,178.95,178.87,45.71459594]
[1734914397125,20.0,178.98,178.87,46.5529473]
[1734914397299,43.74629594,178.97,178.9,23.776884]
[1734914398028,43.74629594,178.99,178.91,43.74629594]
[1734914399442,43.74629594,178.97,178.91,43.74629594]
[1734914399644,43.74629594,178.97,178.89,63.86729594]
[1734914400541,43.74629594,178.97,178.89,49.89239594]
[1734914400834,43.74629594,178.95,178.87,43.74629594]
[1734914402921,43.74629594,178.97,178.89,43.74629594]
[1734914403910,43.74629594,178.97,178.9,0.83825333]
[1734914404116,43.74629594,178.97,178.89,43.74629594]
[1734914404434,43.74629594,178.97,178.89,44.58450773]
[1734914404635,43.74629594,178.99,178.91,43.74629594]
[1734914406433,43.74629594,178.99,178.92,23.776884]
[1734914407619,43.74629594,179.01,178.93,58.55605983]
[1734914408230,43.74629594,179.01,178.93,57.71799594]
[1734914409545,52.24199594,179.1,178.93,57.71799594]
[1734914409546,43.74629594,179.05,178.97,43.74629594]
[1734914409723,43.74629594,179.06,178.99,43.74629594]
[1734914410444,43.74629594,179.07,178.99,43.74629594]
[1734914410822,43.74629594,179.06,178.99,43.74629594]
[1734914412248,43.74629594,179.07,178.99,43.74629594]
[1734914415452,6.6039,179.19,179.05,43.74629594]
[1734914415650,43.74629594,179.13,179.05,43.74629594]
[1734914415855,43.74629594,179.15,179.07,43.74629594]
[1734914416024,43.74629594,179.17,179.09,43.74629594]
[1734914416221,43.74629594,179.19,179.11,43.74629594]
[1734914416451,1.8187,179.25,179.05,22.21302828]
[1734914416452,43.74629594,179.2,179.13,43.74629594]
[1734914416628,43.74629594,179.2,179.12,7.15031017]
[1734914416629,43.74629594,179.2,179.12,50.89660611]
[1734914416824,43.74629594,179.17,179.12,6.3131]
[1734914417137,43.74629594,179.18,179.12,6.3131]
[1734914418353,43.74629594,179.19,179.12,6.3131]
[1734914418650,43.74629594,179.2,179.12,50.89659507]
[1734914418833,6.6039,179.27,179.15,43.74629594]
[1734914418834,43.74629594,179.22,179.15,43.74629594]
[1734914419620,43.74629594,179.23,179.16,43.74629594]
[1734914419824,1.8756,179.3,179.14,0.83704939]
[1734914419825,1.8756,179.3,179.18,43.74629594]
[1734914420020,43.74629594,179.26,179.18,43.74629594]
[1734914420226,43.74629594,179.25,179.18,43.74629594]
[1734914420850,43.74629594,179.28,179.21,23.776884]
[1734914421032,43.74629594,179.31,179.24,43.74629594]
[1734914421237,43.74629594,179.32,179.25,43.74629594]
[1734914422058,43.74629594,179.32,179.23,0.83663199]
[1734914422059,43.74629594,179.32,179.24,67.52317994]
[1734914422261,8.3399,179.4,179.26,43.74629594]
[1734914422428,43.74629594,179.35,179.28,43.74629594]
[1734914422748,8.3399,179.4,179.28,43.74629594]
[1734914422933,8.3399,179.4,179.25,0.83657064]
[1734914422934,43.74629594,179.36,179.29,43.74629594]
[1734914423357,43.74629594,179.35,179.27,43.74629594]
[1734914423529,43.74629594,179.33,179.26,43.74629594]
[1734914423925,43.74629594,179.34,179.26,43.74629594]
[1734914424252,43.74629594,179.35,179.28,43.74629594]
[1734914424893,43.74629594,179.35,179.26,43.74629594]
[1734914425029,43.74629594,179.33,179.26,43.74629594]
[1734914425530,43.74629594,179.31,179.24,43.74629594]
[1734914425727,63.74629594,179.28,179.2,43.74629594]
[1734914425945,43.74629594,179.25,179.18,43.74629594]
[1734914426137,43.74629594,179.27,179.18,43.74629594]
[1734914426332,43.74629594,179.27,179.2,43.74629594]
[1734914427027,43.74629594,179.27,179.18,43.74629594]
[1734914427226,43.74629594,179.27,179.2,43.74629594]
[1734914427433,43.74629594,179.31,179.22,43.74629594]
[1734914427631,43.74629594,179.29,179.22,43.74629594]
[1734914427833,43.74629594,179.27,179.2,43.74629594]
[1734914428130,43.74629594,179.25,179.18,43.74629594]
[1734914428757,43.74629594,179.27,179.18,43.74629594]
[1734914428945,43.74629594,179.27,179.2,43.74629594]
[1734914429445,43.74629594,179.27,179.18,43.74629594]
[1734914430250,43.74629594,179.29,179.2,43.74629594]
[1734914430572,43.74629594,179.29,179.22,43.74629594]
[1734914430867,43.74629594,179.31,179.22,43.74629594]
[1734914432533,43.74629594,179.33,179.26,43.74629594]
[1734914432734,43.74629594,179.35,179.26,43.74629594]
[1734914432929,43.74629594,179.37,179.3,43.74629594]
[1734914433361,43.74629594,179.39,179.3,43.74629594]
[1734914434364,43.74629594,179.41,179.32,43.74629594]
[1734914435063,43.74629594,179.41,179.34,43.74629594]
[1734914435267,43.74629594,179.41,179.32,43.74629594]
[1734914435768,43.74629594,179.41,179.34,43.74629594]
[1734914437241,43.74629594,179.41,179.33,6.2807]
[1734914437566,43.74629594,179.41,179.34,43.74629594]
[1734914438155,43.74629594,179.43,179.34,43.74629594]
[1734914439064,44.44693514,179.45,179.36,43.74629594]
[1734914440841,44.44693514,179.45,179.38,43.74629594]
[1734914441759,0.7006392,179.45,179.38,43.74629594]
[1734914441956,0.7006392,179.45,179.4,43.74629594]
[1734914442959,0.7006392,179.45,179.35,0.83610806]
[1734914442960,44.44693514,179.45,179.36,43.74629594]
[1734914443143,43.74629594,179.43,179.34,45.61599594]
[1734914443347,43.74629594,179.43,179.36,43.74629594]
[1734914443553,44.44693514,179.45,179.36,43.74629594]
[1734914444272,44.44693514,179.45,179.38,43.74629594]
[1734914444567,0.7006392,179.45,179.4,43.74629594]
[1734914446876,0.7006392,179.45,179.41,43.74629594]
[1734914448674,0.7006392,179.45,179.42,50.17019594]
[1734914448977,0.7006392,179.45,179.44,67.52317994]
[1734914449277,43.74629594,179.57,179.44,69.46367994]
[1734914449460,43.74629594,179.57,179.49,43.74629594]
[1734914449777,43.74629594,179.58,179.51,43.74629594]
[1734914451071,43.74629594,179.57,179.49,43.74629594]
[1734914451276,43.74629594,179.54,179.46,43.74629594]
[1734914452479,43.74629594,179.53,179.45,43.74629594]
[1734914452769,43.74629594,179.51,179.43,43.74629594]
[1734914455072,43.74629594,179.53,179.46,43.74629594]
[1734914455575,43.74629594,179.5,179.41,43.74629594]
[1734914460284,50.17029594,179.5,179.41,43.74629594]
[1734914460504,43.74629594,179.48,179.39,43.74629594]
[1734914461297,43.74629594,179.42,179.35,43.74629594]
[1734914461461,43.74629594,179.42,179.34,43.74629594]
[1734914462174,43.74629594,179.44,179.37,43.74629594]
[1734914462355,43.74629594,179.46,179.37,43.74629594]
[1734914462559,43.74629594,179.46,179.39,43.74629594]
[1734914462785,43.74629594,179.46,179.37,43.74629594]
[1734914463098,43.74629594,179.44,179.37,43.74629594]
[1734914464177,43.74629594,179.46,179.37,43.74629594]
[1734914465785,43.74629594,179.44,179.35,43.74629594]
[1734914468580,43.74629594,179.48,179.39,43.74629594]
[1734914469170,43.74629594,179.48,179.41,43.74629594]
[1734914469574,1.9657,179.51,179.41,43.74629594]
[1734914469900,1.9657,179.51,179.43,43.74629594]
[1734914470276,49.81089594,179.54,179.45,43.74629594]
[1734914470469,45.64739594,179.56,179.47,43.74629594]
[1734914470765,45.64739594,179.56,179.42,6.0994]
[1734914470766,43.74629594,179.5,179.43,43.74629594]
[1734914470970,43.74629594,179.5,179.41,43.74629594]
[1734914471166,43.74629594,179.48,179.41,43.74629594]
[1734914471374,43.74629594,179.44,179.37,43.74629594]
[1734914471573,43.74629594,179.4,179.3,13.9424]
[1734914471779,43.74629594,179.4,179.31,43.74629594]
[1734914471972,43.74629594,179.4,179.32,4.04058984]
[1734914472494,43.74629594,179.38,179.31,43.74629594]
[1734914472792,43.74629594,179.36,179.29,50.39409594]
[1734914472988,43.74629594,179.36,179.27,43.74629594]
[1734914473177,43.74629594,179.36,179.23,8.1372]
[1734914473178,43.74629594,179.32,179.25,43.74629594]
[1734914475590,43.74629594,179.3,179.21,43.74629594]
[1734914475775,43.74629594,179.26,179.19,43.74629594]
[1734914475976,43.74629594,179.24,179.16,43.74629594]
[1734914476578,43.74629594,179.22,179.13,6.4618]
[1734914476760,43.74629594,179.22,179.17,4.05404414]
[1734914477272,43.74629594,179.18,179.1,43.74629594]
[1734914477594,11.157,179.26,179.07,43.74629594]
[1734914477595,43.74629594,179.14,179.07,43.74629594]
[1734914480598,43.74629594,179.14,179.05,43.74629594]
[1734914480779,43.74629594,179.19,179.03,43.74629594]
[1734914480780,43.74629594,179.12,179.03,43.74629594]
[1734914481272,43.74629594,179.1,179.03,43.74629594]
[1734914481697,43.74629594,179.05,178.99,0.7006392]
[1734914481989,43.74629594,179.11,179.04,43.74629594]
[1734914482165,43.74629594,179.14,179.06,43.74629594]
[1734914482367,43.74629594,179.14,179.07,43.74629594]
[1734914482569,43.74629594,179.14,179.05,43.74629594]
[1734914483371,43.74629594,179.14,179.07,43.74629594]
[1734914483569,45.68189594,179.16,179.07,43.74629594]
[1734914485196,43.74629594,179.14,179.07,43.74629594]
[1734914485881,43.74629594,179.14,179.05,43.74629594]
[1734914487071,43.74629594,179.12,179.03,44.58377026]
[1734914487272,43.74629594,179.1,179.01,43.74629594]
[1734914488692,43.74629594,179.1,179.03,43.74629594]
[1734914488893,43.74629594,179.12,179.05,43.74629594]
[1734914490399,43.74629594,179.12,179.03,43.74629594]
[1734914490584,1.9356,179.16,178.99,0.7006392]
[1734914490585,43.74629594,179.1,179.01,43.74629594]
[1734914490785,43.74629594,179.08,179.01,43.74629594]
[1734914493398,43.74629594,179.08,178.99,44.44693514]
[1734914493609,43.74629594,179.04,178.99,0.7006392]
[1734914494193,43.74629594,179.06,178.99,0.7006392]
[1734914494397,43.74629594,179.06,178.99,44.44693514]
[1734914495100,43.74629594,179.08,178.99,44.44693514]
[1734914497013,43.74629594,179.1,179.03,43.74629594]
[1734914497518,43.74629594,179.12,179.03,43.74629594]
[1734914497829,43.74629594,179.1,179.03,43.74629594]
[1734914498329,43.74629594,179.08,179.01,43.74629594]
[1734914500510,43.74629594,179.1,179.03,43.74629594]
[1734914501991,43.74629594,179.1,179.01,43.74629594]
[1734914502291,43.74629594,179.08,179.01,43.74629594]
[1734914502495,43.74629594,179.08,178.99,44.44693514]
[1734914503904,43.74629594,179.06,178.99,44.44693514]
[1734914504205,43.74629594,179.08,178.99,44.44693514]
[1734914508610,43.74629594,179.11,179.03,43.74629594]
[1734914508984,43.74629594,179.09,179.01,43.74629594]
[1734914509186,43.74629594,179.07,178.99,44.44693514]
[1734914509494,43.74629594,179.05,178.99,0.7006392]
[1734914509692,43.74629594,179.03,178.99,0.7006392]
[1734914509900,43.74629594,179.01,178.99,0.7006392]
[1734914511498,43.74629594,179.03,178.99,0.7006392]
[1734914512531,43.74629594,179.05,178.99,0.7006392]
[1734914515823,43.74629594,179.07,178.99,44.44693514]
[1734914516004,43.74629594,179.05,178.99,0.7006392]
[1734914519427,43.74629594,179.03,178.99,0.7006392]
[1734914520805,43.74629594,179.07,178.99,0.7006392]
[1734914521005,43.74629594,179.07,179.0,4.07676874]
[1734914521220,43.74629594,179.05,179.0,4.07676874]
[1734914521630,43.74629594,179.05,179.01,4.07676874]
[1734914522226,11.1683,179.08,179.02,4.07676874]
[1734914522450,11.1683,179.08,178.99,0.7006392]
[1734914522451,137.70437588,179.03,178.99,0.7006392]
[1734914522733,87.52317994,179.0,178.99,0.7006392]
[1734914523231,43.74629594,178.93,178.86,43.74629594]
[1734914524108,43.74629594,178.95,178.88,43.74629594]
[1734914525505,43.74629594,178.97,178.89,43.74629594]
[1734914525803,43.74629594,178.98,178.9,43.74629594]
[1734914526010,20.0,179.0,178.86,0.83836249]
[1734914526011,43.74629594,178.93,178.86,43.74629594]
[1734914526408,43.74629594,178.94,178.86,43.74629594]
[1734914526615,43.74629594,178.95,178.88,43.74629594]
[1734914529008,43.74629594,178.97,178.9,43.74629594]
[1734914529213,43.74629594,178.99,178.9,43.74629594]
[1734914529436,43.74629594,179.01,178.92,43.74629594]
[1734914530228,43.74629594,178.99,178.9,43.74629594]
[1734914530430,43.74629594,178.97,178.88,20.0]
[1734914530619,43.74629594,178.95,178.88,43.74629594]
[1734914531021,43.74629594,178.93,178.86,43.74629594]
[1734914531216,43.74629594,178.93,178.83,6.3067]
[1734914531217,43.74629594,178.95,178.88,43.74629594]
[1734914531427,43.74629594,178.97,178.9,43.74629594]
[1734914531831,43.74629594,178.99,178.9,43.74629594]
[1734914532032,43.74629594,179.01,178.92,43.74629594]
[1734914532723,43.74629594,179.01,178.94,43.74629594]
[1734914533234,43.74629594,179.01,178.92,44.58435719]
[1734914533435,43.74629594,178.97,178.9,43.74629594]
[1734914537040,43.74629594,179.01,178.92,43.74629594]
[1734914537723,43.74629594,178.99,178.9,43.74629594]
[1734914539963,43.74629594,178.99,178.92,43.74629594]
[1734914542441,43.74629594,178.99,178.9,43.74629594]
[1734914545336,43.74629594,179.01,178.92,43.74629594]
[1734914547254,43.74629594,178.99,178.92,43.74629594]
[1734914548244,27.0107231,179.0,178.92,27.0107231]
[1734914548645,27.0107231,178.98,178.9,27.0107231]
[1734914549158,27.0107231,178.98,178.91,23.776884]
[1734914549455,27.0107231,179.02,178.94,27.0107231]
[1734914550531,27.0107231,179.0,178.92,27.0107231]
[1734914550735,27.0107231,178.98,178.9,27.0107231]
[1734914553361,13.0759,179.06,178.87,3.01557241]
[1734914553362,27.0107231,179.0,178.92,27.0107231]
[1734914553942,27.0107231,179.02,178.94,27.0107231]
[1734914557170,27.0107231,179.0,178.92,33.6415231]
[1734914557359,27.0107231,178.96,178.88,33.3605231]
[1734914557554,27.0107231,178.94,178.88,6.3498]
[1734914559250,27.0107231,178.96,178.88,33.3605231]
[1734914561268,27.0107231,178.96,178.89,23.776884]
[1734914561672,27.0107231,178.96,178.88,33.3605231]
[1734914561974,27.0107231,178.96,178.88,27.0107231]
[1734914562469,27.0107231,178.92,178.85,6.3038]
[1734914562874,27.0107231,178.9,178.85,6.3038]
[1734914563065,27.0107231,178.9,178.82,27.0107231]
[1734914563465,27.0107231,178.88,178.83,4.08713811]
[1734914563668,27.0107231,178.84,178.83,4.08713811]
[1734914564060,27.0107231,178.84,178.81,0.7006392]
[1734914564261,27.0107231,178.83,178.81,0.7006392]
[1734914564779,27.0107231,178.82,178.81,0.7006392]
[1734914566172,67.78503453,178.82,178.81,3.92e-05]
[1734914566560,67.78503453,178.82,178.67,50.15385053]
[1734914566561,44.00815053,178.74,178.67,50.15385053]
[1734914566747,44.00815053,178.74,178.67,6.1457]
[1734914567164,44.00815053,178.73,178.68,4.07849264]
[1734914567676,44.00815053,178.71,178.68,4.07849264]
[1734914567870,44.00815053,178.71,178.63,44.70878973]
[1734914568066,44.00815053,178.69,178.63,0.7006392]
[1734914568256,44.00815053,178.74,178.63,0.7006392]
[1734914568257,44.00815053,178.66,178.63,0.7006392]
[1734914568456,44.00815053,178.65,178.63,0.7006392]
[1734914569073,44.00815053,178.68,178.63,0.7006392]
[1734914569256,44.00815053,178.71,178.63,44.70878973]
[1734914569451,44.00815053,178.72,178.64,44.00815053]
[1734914569761,44.00815053,178.73,178.65,44.00815053]
[1734914569960,44.00815053,178.73,178.64,0.83948583]
[1734914569961,44.00815053,178.74,178.67,44.00815053]
[1734914570161,44.00815053,178.76,178.68,50.13905053]
[1734914570352,44.00815053,178.76,178.69,44.00815053]
[1734914570555,44.00815053,178.77,178.69,44.00815053]
[1734914572873,44.00815053,178.78,178.71,44.00815053]
[1734914573214,44.00815053,178.8,178.73,44.00815053]
[1734914573355,44.00815053,178.81,178.73,44.00815053]
[1734914573668,44.00815053,178.8,178.72,44.00815053]
[1734914573867,44.00815053,178.8,178.73,64.00815053]
[1734914574077,44.00815053,178.82,178.73,64.00815053]
[1734914574573,44.00815053,178.8,178.73,64.00815053]
[1734914575654,44.00815053,178.82,178.73,64.00815053]
[1734914576478,44.00815053,178.82,178.74,1.8777]
[1734914576853,44.00815053,178.8,178.73,44.00815053]
[1734914577055,44.00815053,178.76,178.69,45.96195053]
[1734914577260,44.00815053,178.76,178.69,1.9538]
[1734914577462,44.00815053,178.74,178.69,1.9538]
[1734914577662,23.776884,178.82,178.68,6.1309]
[1734914577663,44.00815053,178.72,178.68,6.1309]
[1734914577851,44.00815053,178.72,178.65,44.00815053]
[1734914579381,44.00815053,178.74,178.65,44.00815053]
[1734914579563,44.00815053,178.74,178.67,44.00815053]
[1734914581175,44.00815053,178.76,178.67,44.00815053]
[1734914582563,44.00815053,178.76,178.69,44.00815053]
[1734914582768,44.00815053,178.78,178.71,44.00815053]
[1734914583783,2.25957795,178.89,178.73,44.00815053]
[1734914583784,44.00815053,178.8,178.73,44.00815053]
[1734914583965,44.00815053,178.82,178.74,6.6582]
[1734914584290,44.00815053,178.84,178.75,44.00815053]
[1734914584461,44.00815053,178.82,178.74,6.6582]
[1734914585089,44.00815053,178.82,178.75,44.00815053]
[1734914585387,44.00815053,178.84,178.77,44.00815053]
[1734914585590,44.00815053,178.86,178.77,44.00815053]
[1734914590602,44.00815053,178.88,178.81,44.00815053]
[1734914590815,44.00815053,178.86,178.79,44.00815053]
[1734914591024,44.00815053,178.84,178.77,44.00815053]
[1734914591316,44.00815053,178.84,178.76,44.00815053]
[1734914591515,44.00815053,178.84,178.77,44.00815053]
[1734914592006,44.00815053,178.85,178.78,44.00815053]
[1734914593608,44.00815053,178.86,178.78,44.00815053]
[1734914594778,44.00815053,178.88,178.8,44.00815053]
[1734914594982,44.00815053,178.9,178.82,44.00815053]
[1734914595279,44.00815053,178.88,178.8,44.00815053]
[1734914595601,44.00815053,178.85,178.76,44.00815053]
[1734914596705,44.00815053,178.85,178.77,23.776884]
[1734914597082,44.00815053,178.87,178.79,44.00815053]
[1734914599209,44.00815053,178.85,178.77,44.00815053]
[1734914599400,44.00815053,178.83,178.75,44.00815053]
[1734914599716,44.00815053,178.81,178.75,44.00815053]
[1734914599888,44.00815053,178.83,178.75,44.00815053]
[1734914601487,44.00815053,178.85,178.77,44.00815053]
[1734914602297,44.00815053,178.87,178.79,44.00815053]
[1734914604110,44.00815053,178.87,178.78,24.61569049]
[1734914604111,44.00815053,178.89,178.81,44.00815053]
[1734914604296,44.00815053,178.91,178.83,44.00815053]
[1734914605485,44.00815053,178.95,178.87,44.00815053]
[1734914607534,44.00815053,178.95,178.88,23.776884]
[1734914607704,44.00815053,179.01,178.91,44.00815053]
[1734914607909,44.00815053,179.03,178.93,44.00815053]
[1734914608102,44.00815053,179.03,178.93,50.40965053]
[1734914608614,44.00815053,179.05,178.97,44.00815053]
[1734914608915,44.00815053,179.07,178.99,44.00815053]
[1734914609099,44.00815053,179.05,178.97,44.00815053]
[1734914609408,44.00815053,178.99,178.93,6.4015]
[1734914609790,20.0,178.96,178.91,44.00815053]
[1734914610107,20.0,178.96,178.89,52.44735053]
[1734914610299,44.00815053,178.99,178.91,44.00815053]
[1734914610605,44.00815053,179.01,178.93,44.00815053]
[1734914611413,44.00815053,179.03,178.95,44.00815053]
[1734914612521,44.00815053,179.01,178.93,44.00815053]
[1734914612684,20.0,178.98,178.91,44.00815053]
[1734914612889,44.00815053,178.97,178.89,52.44735053]
[1734914613105,44.00815053,178.95,178.89,8.4392]
[1734914613608,44.00815053,178.95,178.89,6.6074]
[1734914614812,1.7933,179.0,178.89,50.61555053]
[1734914614813,44.00815053,178.97,178.89,50.61555053]
[1734914615007,44.00815053,178.95,178.89,50.61555053]
[1734914615510,44.00815053,178.95,178.89,6.6074]
[1734914617000,44.00815053,178.99,178.91,44.00815053]
[1734914619625,44.00815053,178.97,178.89,50.61555053]
[1734914620836,44.00815053,178.95,178.89,6.6074]
[1734914621811,1.8519,179.05,178.89,50.61555053]
[1734914621812,44.00815053,178.97,178.89,50.61555053]
[1734914622134,11.1706,179.04,178.91,44.00815053]
[1734914622135,44.00815053,178.99,178.91,44.00815053]
[1734914626329,44.00815053,178.99,178.9,24.61512483]
[1734914626330,44.00815053,179.05,178.97,44.00815053]
[1734914626530,44.00815053,179.05,178.92,46.83174989]
[1734914626531,44.00815053,179.07,178.99,44.00815053]
[1734914629556,44.00815053,179.07,179.0,23.776884]
[1734914629851,44.00815053,179.07,179.0,24.61457985]
[1734914631327,44.00815053,179.07,179.0,23.776884]
[1734914632050,44.00815053,179.09,179.0,23.776884]
[1734914632652,44.00815053,179.09,179.01,45.95495053]
[1734914633068,44.00815053,179.11,179.03,44.00815053]
[1734914633281,44.00815053,179.11,179.04,23.776884]
[1734914633926,44.00815053,179.11,178.8,36.73499954]
[1734914634127,44.00815053,179.11,178.94,20.0]
[1734914634450,44.00815053,179.09,179.01,44.00815053]
[1734914634649,0.83761884,179.08,179.01,44.00815053]
[1734914635659,44.00815053,179.09,179.01,44.00815053]
[1734914636343,0.83761884,179.08,179.01,44.00815053]
[1734914636864,0.83761884,179.08,178.99,44.00815053]
[1734914636865,44.00815053,179.07,178.99,44.00815053]
[1734914637035,44.00815053,179.05,178.97,44.00815053]
[1734914637962,64.00815053,179.07,178.97,44.00815053]
[1734914638261,44.00815053,179.07,178.99,44.00815053]
[1734914639859,44.13364053,179.05,178.97,44.00815053]
[1734914640166,44.00815053,179.03,178.95,50.37465053]
[1734914640461,0.83761884,179.02,178.95,50.37465053]
[1734914640666,44.00815053,179.01,178.93,44.00815053]
[1734914641169,0.83761884,179.0,178.93,44.00815053]
[1734914641347,44.00815053,178.99,178.91,50.37465053]
[1734914641553,44.00815053,178.97,178.89,44.00815053]
[1734914641953,44.00815053,179.03,178.95,44.00815053]